[Event "ESP-ch U2000 2024"]
[Site "Albacete"]
[Date "2024.08.31"]
[Round "8.6"]
[White "Sala Esquiva, Miguel"]
[Black "Campos Saez, Sergio"]
[Result "1/2-1/2"]
[ECO "A18"]
[WhiteElo "1967"]
[BlackElo "1923"]
[Annotator "NA RC"]
[PlyCount "84"]
[EventDate "2024.08.27"]
[EventType "swiss"]
[EventCountry "ESP"]
[SourceTitle "playchess.com"]
[Source "ChessBase"]
[SourceQuality "1"]
[TimeControl "5400+30"]

1. c4 {[%emt 0:00:03]} Nf6 {[%emt 0:00:21]} 2. Nc3 {[%emt 0:00:40]} e6 {[%emt 0:00:53]} 3. e4 {[%emt 0:00:59]} d5 {[%emt 0:01:49]} 4. cxd5 {[%emt 0:06:23]} exd5 {[%emt 0:00:29]} 5. e5 {[%emt 0:01:37]} d4 {[%emt 0:06:18]} 6. exf6 {[%emt 0:09:47]} dxc3 {[%emt 0:00:15]} 7. Qe2+ {[%emt 0:08:48]} Be6 {[%emt 0:04:06]} 8. dxc3 {[%emt 0:10:08]} gxf6 {[%emt 0:14:24]} 9. g3 {[%emt 0:03:38]} Bd6 {[%emt 0:06:44]} 10. Qb5+ {[%emt 0:06:56]} Nd7 {[%emt 0:09:21]} 11. Qxb7 {[%emt 0:04:07]} O-O {[%emt 0:11:52]} 12. b3 {[%emt 0:15:14]} Rb8 {[%emt 0:07:04]} 13. Qg2 {[%emt 0:04:22]} Be5 {[%emt 0:02:45]} 14. Bd2 {[%emt 0:02:08]} Re8 {[%emt 0:06:04]} 15. Be2 {[%emt 0:09:52]} Bf5 {[%emt 0:02:33]} 16. Nf3 {[%emt 0:04:29]} Bd6 {[%emt 0:08:14]} 17. Nd4 {[%emt 0:02:22]} Bd3 {[%emt 0:06:04]} 18. Be3 {[%emt 0:01:04]} Bxe2 {[%emt 0:01:09]} 19. Kxe2 {[%emt 0:01:09]} Rb6 {[%emt 0:01:26]} 20. Rhd1 {[%emt 0:01:02]} Bc5 {[%emt 0:02:11]} 21. Kf1 {[%emt 0:00:55]} Bxd4 {[%emt 0:00:43]} 22. Bxd4 {[%emt 0:01:12]} Ra6 {[%emt 0:01:28]} 23. Qb7 {[%emt 0:01:21]} Rae6 {[%emt 0:03:15]} 24. Qxa7 {[%emt 0:01:00]} Qc8 {[%emt 0:00:48]} 25. Qa4 {[%emt 0:02:06]} Qb7 {[%emt 0:01:48]} 26. Kg1 {[%emt 0:00:25]} c5 {[%emt 0:00:25]} 27. Be3 {[%emt 0:00:17]} Ne5 {[%emt 0:00:09]} 28. Qf4 {[%emt 0:01:36]} Nf3+ {[%emt 0:00:54]} 29. Kf1 {[%emt 0:00:32]} Nxh2+ {[%emt 0:00:39]} 30. Ke2 {[%emt 0:00:23]} Re4 {[%emt 0:00:32]} 31. Qxf6 {[%emt 0:00:38]} Ng4 {[%emt 0:00:16]} 32. Qg5+ {[%emt 0:00:28]} Kh8 {[%emt 0:00:38]} 33. Rd8 {[%emt 0:00:16]} Nxe3 {[%emt 0:00:36]} 34. Qf6+ {[%emt 0:00:34]} Kg8 {[%emt 0:00:10]} 35. Rxe8+ {[%emt 0:00:13]} Rxe8 {[%emt 0:00:03]} 36. fxe3 {[%emt 0:00:18]} Qg2+ {[%emt 0:00:34]} 37. Qf2 {[%emt 0:00:26]} Qe4 {[%emt 0:00:24]} 38. Rc1 {[%emt 0:01:23]} Rd8 {[%emt 0:00:14]} 39. Ke1 {[%emt 0:00:32]} Rd3 {[%emt 0:00:19]} 40. Ke2 {[%emt 0:00:24]} Rd8 {[%emt 0:00:02]} 41. Ke1 {[%emt 0:00:39]} Rd3 {[%emt 0:00:06]} 42. Ke2 {[%emt 0:00:11]} Rd8 {[%emt 0:00:02]} 1/2-1/2

[Event "ESP-ch U2000 2024"]
[Site "Albacete"]
[Date "2024.08.31"]
[Round "8.7"]
[White "Duller Llopis, Jouke"]
[Black "Martino Girones, Gonzalo"]
[Result "1/2-1/2"]
[ECO "D12"]
[WhiteElo "1928"]
[BlackElo "1903"]
[Annotator "TA"]
[PlyCount "54"]
[EventDate "2024.08.27"]
[EventType "swiss"]
[EventCountry "ESP"]
[SourceTitle "playchess.com"]
[Source "ChessBase"]
[SourceQuality "1"]
[TimeControl "5400+30"]

{[%evp 14,54,13,17,16,11,10,20,18,16,39,27,59,21,25,34,27,20,23,15,45,6,14,14,6,8,4,0,-7,0,-10,-10,8,18,14,-8,10,0,15,-9,14,0,22]} 1. d4 {[%emt 0:05:57]} d5 {[%emt 0:00:05]} 2. c4 {[%emt 0:00:05]} c6 {[%emt 0:00:03]} 3. Nf3 {[%emt 0:00:04]} Nf6 {[%emt 0:00:03][%cal Bg8f6,Bf6e4,Be4d2][%mdl 32]} 4. e3 {[%emt 0:01:06]} Bf5 {[%emt 0:00:11]} 5. Bd3 {[%emt 0:03:41]} Bg6 {[%emt 0:01:12]} 6. O-O {[%emt 0:00:54]} e6 {[%emt 0:00:42]} 7. Nc3 {[%emt 0:07:06]} Nbd7 {[%emt 0:01:14]} 8. Qe2 {[%emt 0:06:39]} Ne4 {[%emt 0:09:05]} 9. Nd2 {[%emt 0:03:48]} Ndf6 {[%emt 0:03:54]} 10. f3 {[%emt 0:01:58]} Nxd2 {[%emt 0:04:41]} 11. Bxd2 {[%emt 0:01:49]} dxc4 {[%emt 0:01:59]} 12. Bxc4 {[%emt 0:11:29]} Be7 {[%emt 0:01:39]} 13. Be1 {[%emt 0:08:16]} O-O {[%emt 0:00:58]} 14. Rd1 {[%emt 0:01:53]} b5 {[%emt 0:05:16]} 15. Bb3 {[%emt 0:02:37]} a6 {[%emt 0:00:41]} 16. Bf2 {[%emt 0:14:21]} Re8 {[%emt 0:01:39]} 17. Bc2 {[%emt 0:02:03]} Qc7 {[%emt 0:02:14] The position is equal.} 18. Bxg6 {[%emt 0:07:20]} hxg6 {[%emt 0:00:05]} 19. e4 {[%emt 0:02:02]} c5 {[%emt 0:10:25]} 20. dxc5 {[%emt 0:00:44]} Bxc5 {[%emt 0:00:38]} 21. Bxc5 {[%emt 0:03:57]} Qxc5+ {[%emt 0:00:02]} 22. Qf2 {[%emt 0:00:01]} Rac8 {[%emt 0:03:05]} 23. Qxc5 {[%emt 0:06:06]} Rxc5 {[%emt 0:00:08]} 24. Kh1 {[%emt 0:00:12]} Kh8 {[%emt 0:00:04]} 25. Kg1 {[%emt 0:00:04]} Kg8 {[%emt 0:00:03]} 26. Kh1 {[%emt 0:00:06]} Kh8 {[%emt 0:00:08]} 27. Kg1 {[%emt 0:00:06]} Kg8 {[%emt 0:00:05] Weighted Error Value: White=0.08 (flawless) /Black=0.10 (very precise) .  Inaccurate:     	White=2     	Black=2      OK:         	White=8     	Black=6} 1/2-1/2

[Event "ESP-ch U2000 2024"]
[Site "Albacete"]
[Date "2024.08.31"]
[Round "8.8"]
[White "Marquez Leon, Juan Antonio"]
[Black "Izuzquiza Gonzalez, Javier"]
[Result "1-0"]
[ECO "A46"]
[WhiteElo "1916"]
[BlackElo "2002"]
[Annotator "NA RC"]
[PlyCount "157"]
[EventDate "2024.08.27"]
[EventType "swiss"]
[EventCountry "ESP"]
[SourceTitle "playchess.com"]
[Source "ChessBase"]
[SourceQuality "1"]
[TimeControl "5400+30"]

1. d4 {[%emt 0:00:08]} Nf6 {[%emt 0:00:17]} 2. Nf3 {[%emt 0:00:03]} d6 {[%emt 0:00:26]} 3. c3 {[%emt 0:00:35]} c6 {[%emt 0:00:15]} 4. Qc2 {[%emt 0:00:38]} Nbd7 {[%emt 0:01:01]} 5. Bf4 Qc7 {[%emt 0:00:28]} 6. h3 {[%emt 0:00:54]} e5 {[%emt 0:00:06]} 7. Bh2 {[%emt 0:00:59]} Be7 {[%emt 0:00:14]} 8. Nbd2 {[%emt 0:00:17]} b5 {[%emt 0:03:53]} 9. e3 {[%emt 0:00:16]} O-O {[%emt 0:00:10]} 10. a4 {[%emt 0:00:13]} Rb8 {[%emt 0:01:47]} 11. axb5 {[%emt 0:00:20]} cxb5 {[%emt 0:00:04]} 12. Bd3 {[%emt 0:02:56]} a6 {[%emt 0:05:17]} 13. O-O {[%emt 0:01:59]} Bb7 {[%emt 0:03:31]} 14. Ne4 {[%emt 0:01:23]} Nd5 {[%emt 0:13:17]} 15. Ned2 {[%emt 0:05:07]} h6 {[%emt 0:03:18]} 16. Be4 {[%emt 0:01:43]} Rfc8 {[%emt 0:08:02]} 17. Qb3 {[%emt 0:02:36]} Qc6 {[%emt 0:07:21]} 18. Qxd5 {[%emt 0:02:10]} Qxd5 {[%emt 0:00:24]} 19. Bxd5 {[%emt 0:00:02]} Bxd5 {[%emt 0:00:01]} 20. dxe5 {[%emt 0:00:12]} dxe5 {[%emt 0:02:06]} 21. Nxe5 {[%emt 0:00:02]} Nxe5 {[%emt 0:00:09]} 22. Bxe5 {[%emt 0:00:02]} Rb6 {[%emt 0:00:54]} 23. Bd4 {[%emt 0:00:01]} Rg6 {[%emt 0:02:57]} 24. e4 {[%emt 0:00:07]} Bb7 {[%emt 0:01:20]} 25. f3 {[%emt 0:01:15]} Kf8 {[%emt 0:11:49]} 26. Rfd1 {[%emt 0:01:27]} Rd8 {[%emt 0:03:13]} 27. Kf2 {[%emt 0:01:33]} Bh4+ {[%emt 0:00:28]} 28. Kf1 {[%emt 0:00:05]} Be7 {[%emt 0:01:11]} 29. Nb3 {[%emt 0:00:23]} Ke8 {[%emt 0:01:52]} 30. Bc5 {[%emt 0:02:07]} Bh4 {[%emt 0:01:19]} 31. Nd4 {[%emt 0:02:10]} Bf6 {[%emt 0:01:46]} 32. Nf5 {[%emt 0:00:24]} Be5 {[%emt 0:00:37]} 33. Bb4 {[%emt 0:02:36]} Bc8 {[%emt 0:01:21]} 34. Rxd8+ {[%emt 0:00:58]} Kxd8 {[%emt 0:00:05]} 35. Rd1+ {[%emt 0:00:06]} Kc7 {[%emt 0:01:31]} 36. Ba5+ {[%emt 0:00:23]} Kb7 {[%emt 0:00:35]} 37. Ne7 {[%emt 0:00:23]} Rd6 {[%emt 0:00:58]} 38. Rxd6 {[%emt 0:00:36]} Bxd6 {[%emt 0:00:04]} 39. Nxc8 {[%emt 0:00:22]} Kxc8 {[%emt 0:00:03]} 40. Ke2 {[%emt 0:00:35]} Kd7 {[%emt 0:00:48]} 41. Bb4 {[%emt 0:00:15]} Be5 {[%emt 0:00:12]} 42. Ke3 {[%emt 0:00:13]} g6 {[%emt 0:01:11]} 43. f4 {[%emt 0:00:12]} Bf6 {[%emt 0:00:37]} 44. Bc5 {[%emt 0:00:13]} Kc6 {[%emt 0:00:07]} 45. Bd4 {[%emt 0:00:33]} Bh4 {[%emt 0:01:26]} 46. g4 {[%emt 0:00:28]} Kd7 {[%emt 0:03:45]} 47. Bg7 {[%emt 0:01:19]} h5 {[%emt 0:00:04]} 48. g5 {[%emt 0:00:11]} Ke6 {[%emt 0:01:52]} 49. Bd4 {[%emt 0:01:21]} Be1 {[%emt 0:00:23]} 50. Kd3 {[%emt 0:00:28]} Kd6 {[%emt 0:01:25]} 51. Be3 {[%emt 0:00:22]} Bh4 {[%emt 0:00:48]} 52. Kd4 {[%emt 0:00:21]} Bg3 {[%emt 0:00:34]} 53. Kd3 {[%emt 0:02:44]} Be1 {[%emt 0:00:11]} 54. Kc2 {[%emt 0:00:33]} Kc6 {[%emt 0:02:15]} 55. Kb3 {[%emt 0:00:12]} Bg3 {[%emt 0:00:32]} 56. Kc2 {[%emt 0:01:52]} Be1 {[%emt 0:00:09]} 57. Kd1 {[%emt 0:00:48]} Bg3 {[%emt 0:00:12]} 58. Ke2 {[%emt 0:00:01]} Kd6 {[%emt 0:00:28]} 59. Bd2 {[%emt 0:00:18]} Kc6 {[%emt 0:00:50]} 60. Kf3 {[%emt 0:00:05]} Bh4 {[%emt 0:00:18]} 61. f5 {[%emt 0:00:48]} Kd6 {[%emt 0:00:31]} 62. Bf4+ {[%emt 0:00:03]} Kc6 {[%emt 0:00:36]} 63. Ke3 {[%emt 0:00:21]} Be1 {[%emt 0:00:20]} 64. Kd4 {[%emt 0:00:28]} b4 {[%emt 0:00:34]} 65. c4 {[%emt 0:01:09]} b3 {[%emt 0:00:15]} 66. Be3 {[%emt 0:01:51]} a5 {[%emt 0:00:18]} 67. c5 {[%emt 0:03:16]} a4 {[%emt 0:01:27]} 68. Kc4 {[%emt 0:00:09]} Ba5 {[%emt 0:00:58]} 69. fxg6 {[%emt 0:00:51]} fxg6 {[%emt 0:00:05]} 70. e5 {[%emt 0:00:15]} Be1 {[%emt 0:00:35]} 71. e6 {[%emt 0:00:16]} Ba5 {[%emt 0:00:08]} 72. Bd4 {[%emt 0:00:29]} Bd2 {[%emt 0:00:38]} 73. Bf6 {[%emt 0:00:34]} Ba5 {[%emt 0:00:14]} 74. e7 {[%emt 0:02:53]} Kd7 {[%emt 0:00:04]} 75. Kb5 {[%emt 0:00:09]} a3 {[%emt 0:00:33]} 76. bxa3 {[%emt 0:00:16]} Bd2 {[%emt 0:00:08]} 77. c6+ {[%emt 0:00:20]} Ke8 {[%emt 0:00:04]} 78. c7 {[%emt 0:00:13]} Kd7 {[%emt 0:00:02]} 79. c8=Q+ {[%emt 0:00:24]} 1-0

[Event "ESP-ch U2000 2024"]
[Site "Albacete"]
[Date "2024.08.31"]
[Round "8.9"]
[White "Murillo Lopez, Francisco"]
[Black "Conde Chamizo, Pablo"]
[Result "1-0"]
[ECO "B36"]
[WhiteElo "1925"]
[BlackElo "1936"]
[Annotator "TA"]
[PlyCount "95"]
[EventDate "2024.08.27"]
[EventType "swiss"]
[EventCountry "ESP"]
[SourceTitle "playchess.com"]
[Source "ChessBase"]
[SourceQuality "1"]
[TimeControl "5400+30"]

{[%evp 12,95,39,39,83,54,56,49,54,52,45,29,63,70,86,64,67,63,63,66,88,85,81,84,115,104,115,111,104,100,95,100,95,81,92,54,47,56,56,62,77,69,63,68,70,63,137,116,200,189,214,198,256,266,260,211,208,200,333,324,363,352,402,389,393,382,479,363,371,370,364,363,396,412,641,614,607,609,704,691,788,778,722,677,772,775]} 1. e4 {[%emt 0:00:28]} c5 {[%emt 0:00:02]} 2. Nf3 {[%emt 0:00:37]} g6 {[%emt 0:00:13]} 3. d4 {[%emt 0:00:27]} cxd4 {[%emt 0:00:04]} 4. Nxd4 {[%emt 0:00:31]} Nc6 {[%emt 0:00:06]} 5. c4 {[%emt 0:00:32]} Nf6 {[%emt 0:00:05]} 6. Nc3 {[%emt 0:00:18]} Bg7 {[%emt 0:09:51]} 7. Be3 {[%emt 0:01:54]} Qb6 {[%emt 0:03:04][%cal Of6g4]} 8. Nb3 {[%emt 0:02:05]} Qd8 {[%emt 0:01:07]} 9. Be2 {[%emt 0:01:07]} O-O {[%emt 0:01:31] White is slightly better.} 10. O-O {[%emt 0:01:11]} d6 {[%emt 0:00:24]} 11. Qd2 {[%emt 0:01:40]} Re8 {[%emt 0:01:56]} 12. Rad1 {[%emt 0:02:29]} b6 {[%emt 0:03:24]} 13. Nd4 {[%emt 0:05:30]} Bb7 {[%emt 0:00:56]} 14. f3 {[%emt 0:02:28]} Rc8 {[%emt 0:01:53]} 15. b3 {[%emt 0:01:48]} Qc7 {[%emt 0:03:16]} 16. Ndb5 {[%emt 0:03:26]} Qb8 {[%emt 0:00:22]} 17. Nd5 {[%emt 0:01:40]} Nxd5 {[%emt 0:00:54]} 18. cxd5 {[%emt 0:00:37]} (18. Qxd5 $2 Nd4 $19) 18... Ne5 {[%emt 0:01:10]} 19. Nd4 {[%emt 0:03:30]} Rc7 {[%emt 0:02:43]} 20. f4 {[%emt 0:04:22]} Nd7 {[%emt 0:01:00]} 21. Nb5 {[%emt 0:08:06]} Rcc8 {[%emt 0:00:00]} 22. Bg4 {[%emt 0:00:11]} Red8 {[%emt 0:02:11]} 23. Rc1 {[%emt 0:00:52]} Rxc1 {[%emt 0:07:00]} 24. Rxc1 {[%emt 0:00:21]} Nf6 {[%emt 0:00:17]} 25. Bf3 {[%emt 0:00:32]} Rc8 {[%emt 0:05:32]} 26. Rxc8+ {[%emt 0:04:55]} Bxc8 {[%emt 0:00:35]} 27. Qc2 {[%emt 0:00:20][%cal Ob5a7]} Bg4 {[%emt 0:00:26]} 28. Kf2 {[%emt 0:02:35]} Bxf3 {[%emt 0:01:02] Black is on the road to losing.} ({Better is} 28... Bd7 $14 29. Nd4 e6) 29. Kxf3 $16 {[%emt 0:00:20]} Nd7 {[%emt 0:10:00]} (29... a6 $16 {keeps fighting.} 30. Qc7 Qe8) 30. Qc6 $18 {[%emt 0:01:22]} (30. Qc7 $6 Qxc7 31. Nxc7 f5 32. exf5 gxf5) 30... Nf6 {[%emt 0:04:03] [#]} 31. g4 $1 {[%emt 0:02:05] g5 would now be deadly.} a6 {[%emt 0:08:42]} (31... h6 {was necessary.} 32. g5 hxg5) 32. Nc7 {[%emt 0:02:31]} (32. Qxb6 $2 Qxb6 33. Bxb6 axb5 $19) 32... Qc8 {[%emt 0:01:50]} 33. Qa8 {[%emt 0:00:36] Active counter play!} (33. Qxb6 $2 {loses.} Qxg4+ 34. Kf2 Nxe4+ 35. Kf1 h5 $19) 33... Qxa8 {[%emt 0:06:33]} 34. Nxa8 {[%emt 0:00:09][%mdl 4096] Endgame. KBN-KBN} b5 {[%emt 0:01:34]} (34... Nd7 {might work better.} 35. Nxb6 (35. Bxb6 Bc3 $18) 35... Nxb6) 35. Nc7 {[%emt 0:02:14]} Nd7 {[%emt 0:00:12]} 36. Nxa6 {[%emt 0:00:22]} Bc3 {[%emt 0:00:05]} 37. Nc7 {[%emt 0:00:22]} b4 {[%emt 0:00:14]} 38. Nb5 {[%emt 0:00:19][%cal Bc7b5,Bb5a7,Ba7c6,Bc6b4][%mdl 32]} g5 {[%emt 0:01:43]} 39. Bd4 {[%emt 0:04:21]} (39. fxg5 Ne5+ 40. Ke2 Bb2) 39... Bd2 {[%emt 0:02:02]} 40. fxg5 {[%emt 0:02:47]} Bxg5 {[%emt 0:00:09]} 41. Na7 {[%emt 0:00:16]} e6 {[%emt 0:04:31]} 42. Nc6 {[%emt 0:02:08]} exd5 {[%emt 0:00:35]} (42... Bd2 $142 43. Ke2 Bf4 44. Nxb4 Bxh2) 43. exd5 {[%emt 0:00:38] White is clearly winning.} Bd2 {[%emt 0:00:06]} 44. Ke2 {[%emt 0:00:17]} Bf4 {[%emt 0:00:15]} 45. h3 {[%emt 0:00:19]} Kf8 {[%emt 0:01:10]} 46. Nxb4 {[%emt 0:00:58]} Ke8 {[%emt 0:00:03]} 47. Kf3 {[%emt 0:01:31]} Bd2 {[%emt 0:01:06]} 48. Nc6 {[%emt 0:00:20] Weighted Error Value: White=0.11 (very precise) /Black=0.29 (precise) .  Mistake:       	---       	Black=5      Inaccurate:     	White=2     	Black=2      OK:         	White=19    	Black=13     Best:        	White=1     	---} 1-0

[Event "ESP-ch U2000 2024"]
[Site "Albacete"]
[Date "2024.09.01"]
[Round "9.1"]
[White "Sierra Pena, Mario"]
[Black "Tarraga Navarro, Pablo"]
[Result "0-1"]
[ECO "A15"]
[WhiteElo "1971"]
[BlackElo "1968"]
[Annotator "TA"]
[PlyCount "48"]
[EventDate "2024.08.27"]
[EventType "swiss"]
[EventCountry "ESP"]
[SourceTitle "playchess.com"]
[Source "ChessBase"]
[SourceQuality "1"]
[TimeControl "5400+30"]

{[%evp 17,48,10,21,21,32,0,0,2,5,0,17,0,0,-8,31,-45,-26,-204,-206,-200,-138,-131,-144,-133,-85,-204,-145,-287,-294,-292,-291,-304,-293]} 1. c4 {[%emt 0:00:03]} Nf6 {[%emt 0:00:25]} 2. g3 {[%emt 0:00:12]} e6 {[%emt 0:00:05]} 3. Nf3 {[%emt 0:00:20]} d5 {[%emt 0:00:25]} 4. b3 {[%emt 0:00:23]} b6 {[%emt 0:03:32]} 5. Bg2 {[%emt 0:00:19]} Bb7 {[%emt 0:00:37]} 6. O-O {[%emt 0:00:19]} Be7 {[%emt 0:04:51]} 7. Bb2 {[%emt 0:01:13]} Nbd7 {[%emt 0:01:10]} 8. d3 {[%emt 0:02:16][%cal Bd2d3,Bd3d4][%mdl 32]} O-O {[%emt 0:00:16]} 9. Nbd2 {[%emt 0:00:16]} c5 {[%emt 0:01:23]} 10. cxd5 {[%emt 0:00:59]} exd5 {[%emt 0:02:07]} 11. d4 {[%emt 0:00:33]} Re8 {[%emt 0:02:58]} 12. Rc1 {[%emt 0:02:30] The position is equal.} Rc8 {[%emt 0:01:46]} 13. Rc2 {[%emt 0:02:16]} h6 {[%emt 0:03:23]} 14. a3 {[%emt 0:09:34]} Bd6 {[%emt 0:09:27]} 15. Re1 {[%emt 0:01:02]} Ne4 {[%emt 0:06:16]} 16. Nf1 {[%emt 0:03:21]} (16. dxc5 $14 Bxc5 17. e3) 16... Qe7 {[%emt 0:04:47]} 17. Ne3 $2 {[%emt 0:07:31] [#]} (17. N3d2 $11) 17... Nxf2 $1 $19 {[%emt 0:02:45][%mdl 512]} 18. Nf5 Nxd1 {[%emt 0:00:20]} 19. Nxe7+ {[%emt 0:02:13]} Rxe7 {[%emt 0:00:52]} 20. Rxd1 {[%emt 0:00:02]} Rce8 {[%emt 0:01:33] Black is more active.} (20... Nf6 $142 {And now ...Ng4 would win.} 21. Rdc1 Ba6 22. dxc5 Bxc5+ (22... bxc5 23. Bxf6 gxf6 24. Nh4 $17) 23. Kh1 Rce8 (23... Rxe2 24. Rxe2 Bxe2 25. Bxf6 $18) (23... Bxe2 24. Bxf6 gxf6 25. b4 $16) 24. Bxf6 gxf6) 21. Rdd2 {[%emt 0:03:17]} (21. dxc5 $17 Bxc5+ (21... bxc5 22. Nh4 $15) 22. Kf1) 21... Nf6 {[%emt 0:05:31]} 22. Ne5 {[%emt 0:00:57] Prevents Ng4} (22. dxc5 $17 {keeps fighting.} Bxc5+ 23. Nd4) 22... Bxe5 {[%emt 0:05:21] Black has a decisive advantage.} 23. dxe5 {[%emt 0:00:08] [#]} Ng4 {[%emt 0:00:17]} 24. Bxd5 {[%emt 0:00:57]} Bxd5 {[%emt 0:00:19] Weighted Error Value: White=0.61/Black=0.22 (precise) .  Loses game:     	White=1     	---        Mistake:       	White=3     	Black=1      Inaccurate:     	White=1     	Black=2      OK:         	White=5     	Black=2      Brilliant:      	---       	Black=1} (24... Nxe5 25. Bxb7 Rxb7 26. h3 $19) 0-1

[Event "ESP-ch U2000 2024"]
[Site "Albacete"]
[Date "2024.09.01"]
[Round "9.2"]
[White "Perez Travieso, Saul"]
[Black "Salazar Romero, Abel"]
[Result "0-1"]
[ECO "E19"]
[WhiteElo "1933"]
[BlackElo "1937"]
[Annotator "TA"]
[PlyCount "96"]
[EventDate "2024.08.27"]
[EventType "swiss"]
[EventCountry "ESP"]
[SourceTitle "playchess.com"]
[Source "ChessBase"]
[SourceQuality "1"]
[TimeControl "5400+30"]

{[%evp 18,96,30,35,43,37,65,56,66,66,89,22,50,7,46,-80,-74,-74,-78,-116,-120,-185,-180,-245,-261,-260,-255,-247,-249,-251,-245,-253,-239,-270,-268,-395,-396,-455,-454,-476,-468,-685,-457,-457,-447,-453,-457,-487,-487,-494,-497,-485,-497,-481,-495,-586,-610,-602,-600,-797,-768,-970,-701,-701,-675,-29974,-29975,-29974,-29973,-29977,-29978,-29978,-29977,-29980,-29980,-29982,-29983,-29984,-29982,-29982,-29983]} 1. d4 {[%emt 0:00:03]} Nf6 {[%emt 0:02:05]} 2. Nf3 {[%emt 0:00:05]} e6 {[%emt 0:00:04]} 3. g3 {[%emt 0:00:03]} b6 {[%emt 0:00:06]} 4. Bg2 {[%emt 0:00:03]} Bb7 {[%emt 0:00:03]} 5. c4 {[%emt 0:00:05]} Be7 {[%emt 0:00:53]} 6. O-O {[%emt 0:00:12]} O-O {[%emt 0:00:06]} 7. Nc3 {[%emt 0:00:07]} Ne4 {[%emt 0:00:44]} 8. Qc2 {[%emt 0:00:13]} Nxc3 {[%emt 0:01:32]} 9. Qxc3 {[%emt 0:01:41]} Bf6 {[%emt 0:00:53]} 10. Qc2 {[%emt 0:01:58][%cal Of3g5] Threatens to win with Ng5!} Nc6 {[%emt 0:02:19]} 11. Rd1 {[%emt 0:06:02]} d5 {[%emt 0:12:06]} 12. cxd5 {[%emt 0:00:49]} exd5 {[%emt 0:02:16] White is slightly better.} 13. Bf4 {[%emt 0:01:45]} Re8 {[%emt 0:00:53]} 14. a3 {[%emt 0:01:06] Prevents Nb4} (14. Rac1 $16) 14... h6 {[%emt 0:04:02]} 15. h4 {[%emt 0:04:27]} Qd7 {[%emt 0:03:07] [#]} 16. e4 {[%emt 0:06:48]} dxe4 $17 {[%emt 0:27:51]} 17. Ne5 {[%emt 0:00:05]} Bxe5 {[%emt 0:00:37]} (17... Nxe5 $2 18. dxe5 Qe7 19. exf6 Qxf6 20. Qxc7 $18 (20. Bxc7 Rac8 $18)) (17... Nxd4 $2 18. Nxd7 Nxc2 19. Nxf6+ (19. Rac1 Bd4 $16) 19... gxf6 20. Rac1 $18) 18. dxe5 {[%emt 0:00:41]} Nd4 {[%emt 0:03:13]} 19. Rac1 {[%emt 0:15:18]} (19. e6 $17 {is a better defense.} Rxe6 (19... Nxc2 $2 20. exd7 Nxa1 21. dxe8=B $18) 20. Qxc7 Ne2+ 21. Kf1 Qxc7 22. Bxc7) 19... Rad8 {[%emt 0:00:52]} 20. Qxc7 {[%emt 0:07:26]} (20. e6 {was necessary.} Qxe6 21. Qxc7 Ne2+ 22. Kh2) 20... Ne2+ {[%emt 0:16:03]} 21. Kf1 {[%emt 0:00:11]} Qxc7 {[%emt 0:04:39]} (21... Nxc1 $2 22. Rxd7 Ba6+ 23. Kg1 $18) 22. Rxc7 {[%emt 0:00:04] [#]} Nxf4 $1 {[%emt 0:00:10]} (22... Rxd1+ 23. Kxe2 Rg1 24. Rxb7 $16) 23. Rxd8 {[%emt 0:01:03]} Ba6+ {[%emt 0:00:03]} (23... Rxd8 24. gxf4 Bd5 25. Bh3 $18 (25. Rxa7 Rc8 $16)) 24. Kg1 {[%emt 0:01:15]} Ne2+ {[%emt 0:00:09]} ({Inferior is} 24... Rxd8 25. gxf4 Bd3 26. Bh3 $16 (26. Rxa7 g5 $16)) 25. Kh2 {[%emt 0:00:37]} Rxd8 {[%emt 0:00:04]} 26. Rxa7 {[%emt 0:00:04]} (26. Bxe4 {was forced.} Bd3 27. Bxd3 Rxd3 28. Rxa7) 26... Bd3 $19 {[%emt 0:00:27]} 27. Ra4 {[%emt 0:01:11]} b5 {[%emt 0:01:06]} 28. Ra7 {[%emt 0:00:53]} Re8 {[%emt 0:00:36]} 29. f4 {[%emt 0:00:54]} (29. Bh3 $142) 29... exf3 {[%emt 0:00:13]} 30. Bxf3 {[%emt 0:00:04]} Rxe5 {[%emt 0:00:52]} 31. Rd7 {[%emt 0:00:51]} Bc4 {[%emt 0:03:35]} 32. Rd2 {[%emt 0:00:07]} Nc1 {[%emt 0:00:37]} 33. Bd1 {[%emt 0:05:59]} Nb3 {[%emt 0:00:50]} 34. Rd8+ {[%emt 0:00:03]} Kh7 {[%emt 0:00:12]} 35. Rd7 {[%emt 0:02:48]} g6 {[%emt 0:00:07]} 36. h5 {[%emt 0:00:38]} gxh5 {[%emt 0:00:08]} 37. Rd6 {[%emt 0:00:52]} Kg7 {[%emt 0:00:14]} 38. Rb6 {[%emt 0:02:20]} Nd4 {[%emt 0:01:07] ...Re1 is the strong threat.} 39. a4 {[%emt 0:01:53]} Bb3 {[%emt 0:01:35]} 40. Bxb3 {[%emt 0:00:25]} Nxb3 {[%emt 0:00:05]} 41. Rxb5 {[%emt 0:01:10]} Rxb5 {[%emt 0:00:06] Black mates.} 42. axb5 {[%emt 0:00:03] KN-K3P} Kg6 {[%emt 0:00:09]} 43. Kh3 {[%emt 0:00:25]} Kg5 {[%emt 0:00:05]} 44. b6 {[%emt 0:00:14]} Nc5 {[%emt 0:00:11]} 45. b3 {[%emt 0:00:38]} f5 {[%emt 0:00:09]} (45... Nxb3 $2 {is the wrong capture.} 46. b7 Nd4 47. b8=Q $18 (47. b8=B Nf3 $15)) 46. b4 {[%emt 0:00:28]} Nb7 {[%emt 0:00:04]} 47. b5 {[%emt 0:00:43]} Nd8 {[%emt 0:00:13]} 48. Kg2 {[%emt 0:00:27]} Kg4 {[%emt 0:00:05] White got outplayed after the opening.   Weighted Error Value: White=0.68/Black=0.23 (precise) .  Mistake:       	White=6     	---        Inaccurate:     	White=2     	Black=4      OK:         	White=9     	Black=10     Best:        	White=1     	Black=6      Strong:       	---       	Black=1} 0-1